bitfinex/quotes_ETHUSD_20250422
["timestamp","ask_amount","ask_price","bid_price","bid_amount"]
[1745317008938,6.16423546,1622.3,1622.1,3.58799963]
[1745317009231,6.16434165,1622.3,1622.1,3.58799963]
[1745317009433,12.3287782,1622.3,1622.1,3.58799963]
[1745317009593,6.16434165,1622.3,1622.1,7.13799963]
[1745317009802,6.16434165,1622.3,1622.1,6.58799963]
[1745317010106,12.32868344,1622.3,1622.1,6.58799963]
[1745317010315,6.16434165,1622.3,1622.1,6.58799963]
[1745317011930,12.32869269,1622.3,1622.1,6.58799963]
[1745317012136,6.16434165,1622.3,1622.1,6.58799963]
[1745317012763,12.32870904,1622.3,1622.1,6.58799963]
[1745317013348,12.32871827,1622.3,1622.1,6.58799963]
[1745317013655,6.16434165,1622.3,1622.1,6.58799963]
[1745317015154,6.16343357,1622.5,1622.2,3.55]
[1745317015329,6.16332819,1622.5,1622.4,3.0]
[1745317015533,6.16332819,1622.5,1622.4,3.33023725]
[1745317017066,6.16309294,1622.6,1622.4,3.33023725]
[1745317017355,6.16332819,1622.5,1622.4,4.13033725]
[1745317017560,6.16332819,1622.5,1622.4,3.33023725]
[1745317019724,6.98062819,1622.5,1622.4,3.33023725]
[1745317019939,6.98062819,1622.5,1622.4,0.33023725]
[1745317020148,6.16408802,1622.3,1622.2,3.80776238]
[1745317020470,6.16408802,1622.3,1622.2,3.57903397]
[1745317027782,6.16408802,1622.3,1622.2,0.32127159]
[1745317027982,6.1659884,1621.8,1621.7,8.62176238]
[1745317028279,6.16544356,1622.0,1621.8,3.0]
[1745317028459,6.16544356,1622.0,1621.9,6.25776238]
[1745317028656,6.16544356,1622.0,1621.9,3.0]
[1745317028990,6.16544356,1622.0,1621.9,3.27149932]
[1745317029585,6.16544356,1622.0,1621.9,4.05679932]
[1745317029953,6.16544356,1622.0,1621.9,3.27149932]
[1745317034704,6.16500574,1622.1,1621.9,3.27149932]
[1745317034988,6.16500574,1622.1,1622.0,3.25776238]
[1745317035377,6.16500574,1622.1,1622.0,3.53174821]
[1745317038412,8.70416826,1622.1,1622.0,3.53174821]
[1745317040310,6.16500574,1622.1,1622.0,3.53174821]
[1745317040806,6.1646596,1622.2,1622.0,4.87684821]
[1745317040967,12.32858187,1622.3,1622.0,4.87684821]
[1745317041172,6.16422371,1622.3,1622.2,3.25776238]
[1745317041505,6.16422371,1622.3,1622.2,3.53373738]
[1745317041810,7.47747137,1622.3,1622.2,3.53373738]
[1745317049807,7.47747137,1622.3,1622.2,0.275975]
[1745317050155,8.31047137,1622.3,1622.2,0.275975]
[1745317050435,6.16560823,1621.9,1621.8,7.55786238]
[1745317050641,6.16560823,1621.9,1621.8,7.80924801]
[1745317051236,6.16560823,1621.9,1621.8,7.05914801]
[1745317051440,7.39870533,1621.9,1621.8,0.25138563]
[1745317051606,6.16636862,1621.7,1621.6,3.25776238]
[1745317051940,6.16636862,1621.7,1621.6,7.06034157]
[1745317054647,6.16636862,1621.7,1621.6,0.25257919]
[1745317054846,6.16636862,1621.7,1621.5,3.0]
[1745317054847,8.01624043,1621.7,1621.5,3.0]
[1745317055155,6.16674888,1621.6,1621.5,3.0]
[1745317056507,6.16609228,1621.8,1621.6,0.55]
[1745317056508,6.1661677,1621.8,1621.6,0.55]
[1745317056739,12.33246717,1621.8,1621.6,3.80776238]
[1745317056926,6.1661677,1621.8,1621.6,3.80776238]
[1745317057334,6.16580508,1621.9,1621.6,3.80776238]
[1745317057335,6.16580508,1621.9,1621.7,0.7501]
[1745317057513,6.16580508,1621.9,1621.8,3.25776238]
[1745317057729,6.16580508,1621.9,1621.8,3.49400951]
[1745317059861,8.22913014,1621.9,1621.8,3.49400951]
[1745317060026,8.22913014,1621.9,1621.8,0.23624713]
[1745317060359,7.39893014,1621.9,1621.8,0.23624713]
[1745317060549,8.22913014,1621.9,1621.8,0.23624713]
[1745317061125,6.16674888,1621.6,1621.5,7.63306238]
[1745317061971,6.16653224,1621.7,1621.5,7.63306238]
[1745317062170,6.16653224,1621.7,1621.6,0.55]
[1745317062457,6.16664006,1621.7,1621.6,7.63306238]
[1745317062669,6.16664006,1621.7,1621.6,6.80776238]
[1745317063652,6.16664006,1621.7,1621.6,7.04331292]
[1745317065936,6.16664006,1621.7,1621.6,6.49331292]
[1745317066137,6.16664006,1621.7,1621.6,3.49331292]
[1745317067078,8.0995408,1621.7,1621.6,3.49331292]
[1745317070170,8.0995408,1621.7,1621.6,0.23555054]
[1745317070470,6.1671292,1621.5,1621.4,6.25776238]
[1745317070772,6.9973292,1621.5,1621.4,0.2168814]
[1745317071077,6.16788996,1621.3,1621.2,3.80776238]
[1745317071262,6.16788996,1621.3,1621.2,3.45657033]
[1745317072375,6.16788996,1621.3,1621.2,0.19880795]
[1745317072564,5.66788996,1621.3,1621.2,0.19880795]
[1745317072875,6.49808996,1621.3,1621.2,0.19880795]
[1745317073063,8.38143916,1621.3,1621.2,0.19880795]
[1745317074878,6.16865091,1621.1,1621.0,12.16876238]
[1745317075178,6.16865091,1621.1,1621.0,9.16876238]
[1745317076409,6.16865091,1621.1,1621.0,3.25776238]
[1745317076875,0.8302,1621.3,1620.8,7.27179567]
[1745317076876,6.16941205,1620.9,1620.8,7.27179567]
[1745317078381,12.33849519,1621.0,1620.8,7.27179567]
[1745317078749,6.16917842,1621.0,1620.9,0.1765236]
[1745317079082,12.33853021,1621.0,1620.8,7.27179567]
[1745317079278,6.16941205,1620.9,1620.8,7.27179567]
[1745317079787,6.16941205,1620.9,1620.8,6.80776238]
[1745317080155,6.16917842,1621.0,1620.8,7.63606238]
[1745317080356,6.16845811,1621.2,1620.9,0.55]
[1745317080557,6.16845811,1621.2,1621.1,3.80776238]
[1745317081063,8.78622223,1621.2,1621.1,3.25776238]
[1745317082484,6.16903146,1621.0,1620.9,9.16676238]
[1745317084401,6.16903146,1621.0,1620.9,3.80776238]
[1745317084564,6.93633146,1621.0,1620.9,3.55]
[1745317084771,6.93633146,1621.0,1620.9,3.0]
[1745317089620,6.16903146,1621.0,1620.9,3.0]
[1745317090123,6.16884042,1621.1,1620.9,3.0]
[1745317090292,6.16903146,1621.0,1620.9,3.0]
[1745317090491,6.16903146,1621.0,1620.9,6.25776238]
[1745317093838,6.16903146,1621.0,1620.9,6.43667598]
[1745317096027,6.16884042,1621.1,1620.9,6.43667598]
[1745317096328,6.16839911,1621.2,1620.9,7.21567598]
[1745317096491,6.16839911,1621.2,1621.1,3.25776238]
[1745317096492,6.16827041,1621.2,1621.1,3.25776238]
[1745317096893,6.16827041,1621.2,1621.1,3.43667598]
[1745317100230,13.01422585,1621.4,1621.1,7.21847598]
[1745317100231,6.08,1621.4,1621.1,7.21847598]
[1745317100415,6.16788996,1621.3,1621.1,0.9607136]
[1745317100728,6.16827041,1621.2,1621.1,0.1789136]
[1745317101035,6.16887453,1621.1,1621.0,6.25776238]
[1745317102825,6.16941205,1620.9,1620.8,3.80776238]
[1745317103025,6.16941205,1620.9,1620.8,6.80776238]
[1745317103237,6.16941205,1620.9,1620.8,6.25776238]
[1745317103424,6.17017284,1620.8,1620.7,3.25776238]
[1745317103605,6.17017284,1620.8,1620.7,6.25776238]
[1745317103786,6.17017284,1620.8,1620.7,3.80776238]
[1745317104232,6.17017284,1620.8,1620.7,6.80776238]
[1745317106007,6.17017284,1620.8,1620.7,7.27774845]
[1745317106470,6.17017284,1620.8,1620.7,6.80776238]
[1745317106892,0.7705,1621.0,1620.8,0.55]
[1745317107087,6.16929867,1621.0,1620.9,3.25776238]
[1745317108333,8.01997763,1621.0,1620.9,3.25776238]
[1745317108830,8.78957763,1621.0,1620.9,3.43438556]
[1745317110136,8.78957763,1621.0,1620.9,0.17662318]
[1745317110341,6.16979269,1620.8,1620.7,6.80776238]
[1745317112118,6.16979269,1620.8,1620.7,6.25776238]
[1745317115319,6.16979269,1620.8,1620.7,3.0]
[1745317116209,6.17017338,1620.7,1620.6,8.61676238]
[1745317116414,6.17017338,1620.7,1620.6,12.16676238]
[1745317117140,6.17017338,1620.7,1620.6,12.62233313]
[1745317119254,6.17017338,1620.7,1620.6,12.16676238]
[1745317119956,6.17017338,1620.7,1620.6,11.61676238]
[1745317120746,6.17017338,1620.7,1620.6,8.61676238]
[1745317123824,6.17017338,1620.7,1620.6,11.7679635]
[1745317124225,7.48587999,1620.7,1620.6,8.7679635]
[1745317124440,7.48587999,1620.7,1620.6,5.51020112]
[1745317124922,7.48587999,1620.7,1620.6,0.15120112]
[1745317125976,6.17093489,1620.5,1620.4,5.07339926]
[1745317126176,6.17093489,1620.5,1620.4,3.71079926]
[1745317126685,6.17131572,1620.4,1620.1,9.38596238]
[1745317126980,6.17207752,1620.2,1620.1,9.38596238]
[1745317127143,6.17207752,1620.2,1620.1,12.38596238]
[1745317127339,6.17207752,1620.2,1620.1,12.84389896]
[1745317127572,6.17184869,1620.3,1620.1,12.84389896]
[1745317127773,6.17207752,1620.2,1620.1,12.07269896]
[1745317127972,6.17207752,1620.2,1620.1,3.0]
[1745317128171,6.17207752,1620.2,1620.1,6.25776238]
[1745317129283,6.17207752,1620.2,1620.1,3.0]
[1745317129496,6.17207752,1620.2,1619.9,3.25776238]
[1745317129497,6.1728395,1620.0,1619.9,3.25776238]
[1745317129661,6.17307567,1620.0,1619.7,9.43171279]
[1745317129840,6.17307567,1620.0,1619.9,3.25776238]
[1745317130255,6.17266408,1620.1,1619.9,3.25776238]
[1745317130482,12.34539451,1620.1,1619.9,3.25776238]
[1745317130683,12.345381,1620.1,1619.9,3.25776238]
[1745317130848,6.17266408,1620.1,1619.9,3.25776238]
[1745317131179,12.34467464,1620.2,1620.0,3.55]
[1745317131384,6.17245849,1620.1,1620.0,3.55]
[1745317131676,6.17231238,1620.2,1620.0,6.80776238]
[1745317131891,6.17245849,1620.1,1620.0,6.80776238]
[1745317134283,6.17245849,1620.1,1619.7,0.7712]
[1745317134284,2.01257709,1620.1,1619.7,0.7712]
[1745317134463,6.17309236,1620.0,1619.8,3.25776238]
[1745317134658,6.17270341,1620.1,1619.8,3.25776238]
[1745317134863,6.1728395,1620.0,1619.9,0.55]
[1745317135260,12.34542712,1620.1,1619.8,3.25776238]
[1745317135479,6.17269816,1620.1,1620.0,3.25776238]
[1745317136887,6.17269816,1620.1,1619.9,3.25776238]
[1745317137090,6.17269816,1620.1,1619.9,6.80776238]
[1745317137091,6.1728395,1620.0,1619.9,6.80776238]
[1745317138988,6.1728395,1620.0,1619.9,3.0]
[1745317139289,8.16369286,1620.0,1619.9,3.0]
[1745317139870,6.1728395,1620.0,1619.9,3.0]
[1745317141373,6.9631395,1620.0,1619.9,3.0]
[1745317143264,6.9631395,1620.0,1619.9,3.11650166]
[1745317145088,6.1728395,1620.0,1619.9,3.11650166]
[1745317145399,6.08,1620.1,1619.9,7.13846404]
[1745317145799,6.08,1620.1,1620.0,3.55]
[1745317146163,6.08,1620.1,1620.0,9.84471995]
[1745317146415,19.21272194,1620.5,1620.1,0.7642]
[1745317146573,14.21151198,1620.5,1620.3,3.25776238]
[1745317146968,14.21151198,1620.5,1620.4,0.12188045]
[1745317153617,12.25074104,1620.6,1620.4,3.89608045]
[1745317153784,6.17074104,1620.6,1620.4,3.89608045]
[1745317153989,6.17074104,1620.6,1620.4,4.00361575]
[1745317154385,6.92461035,1620.7,1620.4,4.00361575]
[1745317154610,6.17031035,1620.7,1620.4,4.00361575]
[1745317154803,6.17031035,1620.7,1620.4,4.46190207]
[1745317155008,6.17031035,1620.7,1620.5,3.25776238]
[1745317155313,12.3407685,1620.7,1620.5,3.25776238]
[1745317155522,6.17031035,1620.7,1620.6,0.22941575]
[1745317157026,0.7543,1621.1,1620.7,1.3242]
[1745317157183,13.09204312,1621.1,1620.9,3.25776238]
[1745317157520,6.92311767,1621.1,1621.0,0.17206181]
[1745317157885,12.24851754,1621.2,1621.0,0.17206181]
[1745317157886,13.00275594,1621.2,1621.0,0.17206181]
[1745317158086,19.17136695,1621.2,1621.0,3.17206181]
[1745317159117,6.16865091,1621.1,1621.0,0.17206181]
[1745317159313,6.16865091,1621.1,1620.7,4.03196238]
[1745317159314,6.16979269,1620.8,1620.7,3.25776238]
[1745317159487,6.16979269,1620.8,1620.7,3.42982419]
[1745317159689,6.16979269,1620.8,1620.7,6.42982419]
[1745317160709,6.16951245,1620.9,1620.7,6.42982419]
[1745317161220,6.1692706,1621.0,1620.8,3.0]
[1745317161420,6.16941205,1620.9,1620.7,3.42982419]
[1745317161624,6.16941205,1620.9,1620.7,3.25776238]
[1745317161917,6.16941205,1620.9,1620.8,0.17206181]
[1745317162122,12.33857173,1621.0,1620.8,0.17206181]
[1745317162417,6.92315931,1621.1,1620.9,3.25776238]
[1745317162625,6.16903146,1621.0,1620.9,3.25776238]
[1745317162836,6.16903146,1621.0,1620.8,3.55]
[1745317163040,6.16903146,1621.0,1620.9,0.17206181]
[1745317163417,6.16903146,1621.0,1620.8,3.55]
[1745317163740,6.16903146,1621.0,1620.9,0.17206181]
[1745317164045,12.33788994,1621.1,1620.8,4.3242]
[1745317164338,6.16903146,1621.0,1620.9,0.17206181]
[1745317164545,6.16903146,1621.0,1620.8,4.3242]
[1745317164744,6.16903146,1621.0,1620.9,0.17206181]
[1745317164944,6.16903146,1621.0,1620.8,4.3242]
[1745317165145,6.16888855,1621.1,1620.9,0.17206181]
[1745317165331,6.16888855,1621.1,1620.8,4.3242]
[1745317165506,6.16888855,1621.1,1620.9,0.17206181]
[1745317165706,12.3378311,1621.1,1620.8,4.3242]
[1745317165903,12.3378311,1621.1,1620.9,0.17206181]
[1745317166143,6.16888855,1621.1,1620.8,4.3242]
[1745317166315,6.16888855,1621.1,1620.9,0.17206181]
[1745317166641,6.16888855,1621.1,1620.8,4.3242]
[1745317166854,6.16888855,1621.1,1621.0,0.17206181]
[1745317167011,6.16888855,1621.1,1620.8,4.3242]
[1745317167211,6.16888855,1621.1,1621.0,0.17206181]
[1745317167412,6.16888855,1621.1,1620.8,4.3242]
[1745317167614,12.33852772,1621.0,1620.8,1.3242]
[1745317167821,6.16941205,1620.9,1620.8,3.55]
[1745317168027,12.33846587,1621.0,1620.8,1.02004424]
[1745317168228,6.16915041,1621.0,1620.8,1.02004424]
[1745317168948,12.338457,1621.0,1620.8,1.02004424]
[1745317169945,6.16949247,1620.9,1620.7,4.02046238]
[1745317170310,12.33919639,1620.9,1620.7,4.02046238]
[1745317170515,6.16949247,1620.9,1620.7,3.25776238]
[1745317171627,6.16979269,1620.8,1620.7,3.25776238]
[1745317173661,6.16949247,1620.9,1620.7,3.25776238]
[1745317173662,12.33921539,1620.9,1620.7,3.25776238]
[1745317173829,6.16949247,1620.9,1620.7,3.25776238]
[1745317174361,12.33925801,1620.9,1620.7,3.25776238]
[1745317175352,6.16979269,1620.8,1620.7,3.25776238]
[1745317176953,6.16979269,1620.8,1620.7,3.7267839]
[1745317178762,6.16979269,1620.8,1620.7,6.25776238]
[1745317180435,12.33918632,1620.9,1620.7,6.25776238]
[1745317180932,6.16979269,1620.8,1620.7,6.25776238]
[1745317181361,12.33923268,1620.9,1620.7,6.25776238]
[1745317181534,6.16949247,1620.9,1620.7,6.25776238]
[1745317182026,6.16979269,1620.8,1620.7,6.25776238]
[1745317182423,6.16979269,1620.8,1620.7,3.25776238]
[1745317183628,6.17017338,1620.7,1620.6,4.3127]
[1745317183830,6.17017338,1620.7,1620.6,3.55]
[1745317185237,6.17017338,1620.7,1620.6,3.0]
[1745317185669,6.17017338,1620.7,1620.5,4.05546238]
[1745317185831,6.17017338,1620.7,1620.6,3.0]
[1745317186033,12.34060402,1620.7,1620.5,4.05546238]
[1745317186232,6.17017338,1620.7,1620.5,4.05546238]
[1745317191734,6.17055411,1620.6,1620.5,4.60546238]
[1745317191934,6.17055411,1620.6,1620.5,7.60546238]
[1745317192668,12.34072444,1620.7,1620.5,7.60546238]
[1745317192881,6.17017338,1620.7,1620.5,7.60546238]
[1745317193182,6.17017338,1620.7,1620.5,6.80776238]
[1745317193580,6.17055411,1620.6,1620.5,6.80776238]
[1745317193889,6.17055411,1620.6,1620.5,6.25776238]
[1745317194877,6.17055411,1620.6,1620.5,3.0]
[1745317195079,8.10116364,1620.6,1620.5,3.0]
[1745317195447,6.17131572,1620.4,1620.3,3.25776238]
[1745317195647,6.17131572,1620.4,1620.1,8.60876238]
[1745317195648,6.17194227,1620.3,1620.1,8.60876238]
[1745317195879,6.17194227,1620.3,1620.2,3.55]
[1745317196258,6.17194227,1620.3,1620.1,8.60876238]
[1745317196443,6.17194227,1620.3,1620.2,3.0]
[1745317196784,6.17207752,1620.2,1620.1,9.07242159]
[1745317197349,6.17207752,1620.2,1620.1,3.25776238]
[1745317197964,13.17291894,1620.3,1620.1,3.25776238]
[1745317198283,6.17207752,1620.2,1620.1,3.25776238]
[1745317198486,7.00094227,1620.3,1620.1,3.25776238]
[1745317198845,13.17293925,1620.3,1620.1,3.25776238]
[1745317199583,6.17207752,1620.2,1620.1,3.25776238]
[1745317200098,6.17207752,1620.2,1619.7,6.17376676]
[1745317200099,6.17333784,1619.9,1619.7,9.67098784]
[1745317200398,6.17322056,1619.9,1619.8,3.0]
[1745317200609,6.1728395,1620.0,1619.8,3.0]
[1745317200769,6.17272172,1620.1,1619.9,3.25776238]
[1745317201181,6.1728395,1620.0,1619.9,3.25776238]
[1745317202365,19.25367358,1620.2,1619.9,3.25776238]
[1745317202565,18.42473132,1620.2,1619.9,4.01766238]
[1745317202997,6.08,1620.2,1620.1,3.25776238]
[1745317203193,12.25207752,1620.2,1620.1,6.3757573]
[1745317203716,6.17207752,1620.2,1620.1,6.3757573]
[1745317204883,8.31837749,1620.2,1620.1,0.11799492]
[1745317205298,6.17251659,1620.1,1619.9,4.01766238]
[1745317205612,6.17251659,1620.1,1620.0,3.0]
[1745317205808,7.00107752,1620.2,1620.0,3.0]
[1745317206111,6.17207752,1620.2,1620.0,3.0]
[1745317206285,12.34442001,1620.2,1620.0,3.0]
[1745317206483,6.17207752,1620.2,1620.0,3.0]
[1745317207306,0.829,1619.9,1619.2,0.7599]
[1745317207513,6.17360167,1619.8,1619.2,0.7599]
[1745317207670,6.17477165,1619.5,1619.4,6.25776238]
[1745317207878,6.17455183,1619.6,1619.4,6.25776238]
[1745317208084,6.17421491,1619.7,1619.4,6.25776238]
[1745317208294,6.17421491,1619.7,1619.6,6.25776238]
[1745317209207,6.17421491,1619.7,1619.6,3.0]
[1745317210221,1.23478501,1619.7,1619.3,4.01766238]
[1745317210412,0.8249,1619.6,1619.3,8.60776238]
[1745317210608,6.17432789,1619.7,1619.5,3.25776238]
[1745317210807,6.17436404,1619.6,1619.5,6.25776238]
[1745317211016,6.17436404,1619.6,1619.5,3.25776238]
[1745317212095,6.17432789,1619.7,1619.5,3.25776238]
[1745317212639,12.34857136,1619.7,1619.5,3.25776238]
[1745317212801,12.34849747,1619.7,1619.5,3.25776238]
[1745317213004,6.17424347,1619.7,1619.5,3.25776238]
[1745317213309,12.34851303,1619.7,1619.5,3.25776238]
[1745317213697,6.17424305,1619.7,1619.5,3.25776238]
[1745317214425,12.34765643,1619.8,1619.5,3.25776238]
[1745317214629,13.66491207,1619.8,1619.5,3.25776238]
[1745317214926,6.17404998,1619.7,1619.5,3.25776238]
[1745317215317,6.17539891,1619.4,1619.1,0.7131074]
[1745317215523,6.17565646,1619.3,1619.2,3.25776238]
[1745317215691,12.35083466,1619.4,1619.2,3.25776238]
[1745317215891,6.17493719,1619.5,1619.2,3.25776238]
[1745317216245,7.00040793,1619.3,1619.2,6.25776238]
[1745317217324,6.17533614,1619.4,1619.2,6.25776238]
[1745317218019,6.96608874,1619.5,1619.3,3.0]
[1745317218201,6.96608874,1619.5,1619.2,3.25776238]
[1745317218202,6.17529851,1619.4,1619.2,3.25776238]
[1745317219339,6.17498874,1619.5,1619.2,3.25776238]
[1745317219548,0.7911,1619.6,1619.4,3.25776238]
[1745317219713,6.17403921,1619.7,1619.5,3.0]
[1745317220046,6.17436404,1619.6,1619.5,3.0]
[1745317220812,14.32284008,1619.7,1619.5,3.0]
[1745317221049,8.14860141,1619.7,1619.5,3.0]
[1745317221214,6.17403921,1619.7,1619.5,3.0]
[1745317222039,6.17436404,1619.6,1619.5,3.0]
[1745317224841,6.96546404,1619.6,1619.3,5.351]
[1745317225016,13.14029818,1619.6,1619.3,5.351]
[1745317225339,12.3492375,1619.6,1619.4,3.25776238]
[1745317225639,13.13956739,1619.7,1619.4,4.06936238]
[1745317225818,6.17443127,1619.6,1619.4,4.06936238]
[1745317226237,6.17443127,1619.6,1619.4,3.25776238]
[1745317226412,13.1395651,1619.7,1619.4,3.25776238]
[1745317227544,6.17442122,1619.6,1619.4,3.25776238]
[1745317228054,6.17474529,1619.5,1619.4,6.80776238]
[1745317228222,6.17442122,1619.6,1619.4,6.80776238]
[1745317228421,6.17414971,1619.7,1619.5,3.0]
[1745317228622,6.17414971,1619.7,1619.1,0.87408468]
[1745317228623,6.17588932,1619.2,1619.1,0.400737]
[1745317230316,6.99218932,1619.2,1619.1,0.400737]
[1745317231229,6.99218932,1619.2,1619.1,1e-08]
[1745317231870,6.99218932,1619.2,1619.1,0.27732944]
[1745317232030,6.17588932,1619.2,1619.1,1e-08]
[1745317232230,6.17588932,1619.2,1619.1,0.2937791]
[1745317232432,6.17488534,1619.5,1619.2,0.55]
[1745317232782,6.17458713,1619.6,1619.4,0.8116]
[1745317233470,6.17458713,1619.6,1619.5,0.29188402]
[1745317233771,7.40946213,1619.6,1619.5,0.29188402]
[1745317235067,6.17474529,1619.5,1619.4,0.55]
[1745317236270,6.17458713,1619.6,1619.4,0.55]
[1745317238364,6.99119424,1619.5,1619.2,0.8116]
[1745317238570,6.17489424,1619.5,1619.3,3.25776238]
[1745317239371,12.34915794,1619.6,1619.3,3.25776238]
[1745317239776,6.17450588,1619.6,1619.3,3.25776238]
[1745317240067,12.34922283,1619.6,1619.3,3.25776238]
[1745317240364,12.34914156,1619.6,1619.3,3.25776238]
[1745317240569,12.34914156,1619.6,1619.4,3.0]
[1745317240570,6.17450588,1619.6,1619.4,3.0]
[1745317241538,12.34923664,1619.6,1619.4,3.0]
[1745317241967,6.17450588,1619.6,1619.4,3.0]
[1745317242474,12.34917932,1619.6,1619.4,3.0]
[1745317243673,6.17450588,1619.6,1619.5,0.28939118]
[1745317250297,6.17588932,1619.2,1619.1,1e-08]
[1745317258010,6.17588932,1619.2,1619.1,0.21515653]
[1745317259604,6.92958932,1619.2,1619.1,0.21515653]
[1745317261506,1.31649803,1619.6,1619.2,3.55]
[1745317261805,13.57098946,1619.8,1619.5,3.25776238]
[1745317261806,12.25382621,1619.8,1619.5,3.25776238]
[1745317262013,12.34837788,1619.7,1619.5,3.25776238]
[1745317262224,12.3484826,1619.7,1619.5,3.25776238]
[1745317262390,6.17412985,1619.7,1619.6,0.22033415]
[1745317262590,8.15099983,1620.2,1619.8,3.0]
[1745317262885,12.25207752,1620.2,1620.1,3.0]
[1745317263078,6.1726628,1620.1,1619.9,3.55]
[1745317263279,18.42443139,1620.2,1620.0,0.21824295]
[1745317263504,12.25207752,1620.2,1620.0,0.21824295]
[1745317264517,18.42443844,1620.2,1620.0,0.21824295]
[1745317264814,12.25207752,1620.2,1620.0,0.21824295]
[1745317265015,18.42446746,1620.2,1620.0,0.21824295]
[1745317265723,6.17245849,1620.1,1620.0,0.21824295]
[1745317266078,6.17315379,1620.0,1619.8,3.0]
[1745317266410,6.17315379,1620.0,1619.9,0.21097777]
[1745317266981,6.17322056,1619.9,1619.7,9.15676238]
[1745317267177,6.17360167,1619.8,1619.7,9.15676238]
[1745317267374,6.17360167,1619.8,1619.7,12.15676238]
[1745317267819,6.17322056,1619.9,1619.8,3.0]
[1745317269334,6.17304912,1620.0,1619.8,3.0]
[1745317269486,6.17304912,1620.0,1619.8,3.7773]
[1745317269688,6.17322056,1619.9,1619.8,4.3273]
[1745317269907,6.17304912,1620.0,1619.8,4.3273]
[1745317270088,6.17322056,1619.9,1619.8,4.3273]
[1745317270288,6.17322056,1619.9,1619.8,3.7773]
[1745317270501,6.17322056,1619.9,1619.8,3.0]
[1745317271084,6.17404086,1619.7,1619.5,3.0]
[1745317271292,12.34936193,1619.6,1619.4,9.43526238]
[1745317271481,6.17474529,1619.5,1619.3,8.60576238]
[1745317271686,6.17474529,1619.5,1619.4,3.0]
[1745317272120,6.17474529,1619.5,1619.3,8.60576238]
[1745317272486,6.17474529,1619.5,1619.4,3.0]
[1745317273083,6.17454994,1619.6,1619.4,3.0]
[1745317273380,12.34921512,1619.6,1619.4,3.0]
[1745317273584,6.17474529,1619.5,1619.4,3.0]
[1745317275631,12.34925229,1619.6,1619.4,3.0]
[1745317275790,6.17474529,1619.5,1619.4,3.0]
[1745317276438,0.7834,1619.5,1619.3,3.25776238]
[1745317276597,6.95928932,1619.2,1619.1,1e-08]
[1745317276802,6.17569629,1619.3,1619.1,1e-08]
[1745317277114,6.17588932,1619.2,1619.1,1e-08]
[1745317280805,6.95928932,1619.2,1619.1,1e-08]
[1745317284221,13.03928932,1619.2,1619.1,1e-08]
[1745317284542,15.57835755,1619.2,1619.1,1e-08]
[1745317284702,20.92835755,1619.2,1619.1,1e-08]
[1745317284911,24.18611993,1619.2,1619.1,1e-08]
[1745317285242,6.92970584,1618.2,1618.1,1e-08]
[1745317285428,6.56079802,1617.6,1617.5,0.400737]
[1745317285646,6.56079802,1617.6,1617.5,1e-08]
[1745317285810,6.56079802,1617.6,1617.5,0.14317695]
[1745317286007,6.56079802,1617.6,1617.5,1e-08]
[1745317286407,6.18177459,1617.7,1617.5,0.11760165]
[1745317286607,6.18199802,1617.6,1617.5,1e-08]
[1745317286852,6.18183843,1617.7,1617.5,1e-08]
[1745317287146,6.18199802,1617.6,1617.5,1e-08]
[1745317287318,6.1818258,1617.7,1617.5,1e-08]
[1745317288106,6.97969802,1617.6,1617.5,1e-08]
[1745317289128,6.97969802,1617.6,1617.5,0.11760165]
[1745317289714,6.97969802,1617.6,1617.5,1e-08]
[1745317289916,6.18352708,1617.2,1617.1,0.1]
[1745317290117,6.98122708,1617.2,1617.1,0.1]
[1745317290317,6.98122708,1617.2,1617.1,0.21760164]
[1745317290636,6.18352708,1617.2,1617.1,0.21760164]
[1745317290807,6.18338515,1617.3,1617.1,0.21760164]
[1745317291014,12.36685241,1617.3,1617.1,0.21760164]
[1745317291220,6.18338515,1617.3,1617.1,0.21760164]
[1745317291552,6.18141985,1617.8,1617.4,9.73261147]
[1745317291721,6.1820559,1617.6,1617.1,6.86610894]
[1745317292062,6.1825491,1617.5,1617.3,3.0]
[1745317292209,6.08,1617.7,1617.1,3.21760164]
[1745317292410,6.18238021,1617.5,1617.4,0.13264655]
[1745317292635,6.18352708,1617.2,1617.1,3.1]
[1745317292862,6.18294079,1617.4,1617.1,3.1]
[1745317293026,6.18319536,1617.3,1617.1,3.1]
[1745317293229,7.41951404,1617.4,1617.1,3.1]
[1745317293729,12.26216607,1617.6,1617.2,6.73340317]
[1745317293941,12.26216607,1617.6,1617.2,0.55]
[1745317293942,6.18216607,1617.6,1617.2,0.55]
[1745317294287,6.18253823,1617.5,1617.2,0.55]
[1745317294608,6.18318144,1617.3,1617.2,8.926]
[1745317294811,6.18318144,1617.3,1617.1,3.1]
[1745317295810,6.18352708,1617.2,1616.9,26.293]
[1745317296046,6.80168786,1617.3,1616.9,32.47765279]
[1745317296545,6.18354058,1617.2,1616.9,26.293]
[1745317296711,12.26293311,1617.4,1617.0,0.55]
[1745317296913,7.38606331,1617.4,1617.0,0.55]
[1745317297165,6.18367161,1617.2,1617.0,0.55]
[1745317297529,6.18326055,1617.3,1617.0,3.55]
[1745317298056,12.36673754,1617.3,1617.0,3.55]
[1745317298259,6.18326055,1617.3,1617.0,3.55]
[1745317298466,7.54019294,1617.3,1617.0,3.55]
[1745317298787,6.8777,1617.2,1616.5,0.7615]
[1745317299073,6.18558116,1616.7,1616.3,0.7615]
[1745317299229,12.37134549,1616.7,1616.4,3.0]
[1745317299424,6.18498456,1616.9,1616.5,6.18603068]
[1745317299629,6.1854289,1616.8,1616.6,0.12633085]
[1745317299858,0.69826846,1616.9,1616.6,0.12633085]
[1745317300062,6.18367336,1617.2,1616.8,9.18481952]
[1745317300462,8.35553523,1617.3,1616.9,0.67981901]
[1745317300662,8.35553523,1617.3,1616.9,4.54939855]
[1745317300663,6.18318384,1617.3,1616.9,4.54939855]
[1745317300863,0.8153,1617.6,1617.1,1.3391]
[1745317301072,6.1820419,1617.6,1617.3,3.55]
[1745317301229,6.18244409,1617.5,1617.3,3.55]
[1745317301429,6.18161587,1617.7,1617.4,0.12932061]
[1745317301628,6.18262203,1617.5,1617.4,0.12932061]
[1745317302071,6.18324988,1617.3,1617.1,3.7891]
[1745317302276,6.18324988,1617.3,1617.2,0.12932061]
[1745317302473,6.1825238,1617.5,1617.2,0.55]
[1745317302632,6.80030202,1617.6,1617.3,0.12932061]
[1745317302830,12.98265688,1617.6,1617.3,0.12932061]
[1745317303154,6.80030202,1617.6,1617.3,0.12932061]
[1745317303348,6.18214043,1617.6,1617.3,3.12932061]
[1745317303570,12.36445141,1617.6,1617.3,3.12932061]
[1745317303735,6.18276245,1617.4,1617.3,0.12932061]
[1745317303931,6.99806245,1617.4,1617.3,0.12932061]